fUSD/lending_fUSD_20240118
["ID","MTS","AMOUNT","RATE_DAILY","PERIOD"]
[312057703,1705588238401,-153.9787035,0.00024,2]
[312057704,1705588238463,-277.55345985,0.00024,2]
[312057705,1705588238472,-201.13102968,0.00024,2]
[312057706,1705588238481,-150.0,0.00024089,2]
[312057707,1705588238490,-500.0,0.00024375,2]
[312057708,1705588238499,-250.0,0.000248,2]
[312057709,1705588238509,-499.99,0.000248,2]
[312057710,1705588238518,-158.26,0.00024945,2]
[312057711,1705588238527,-684.97,0.00025,2]
[312057712,1705588238536,-459.9231705,0.00025,2]
[312057746,1705588239024,-425.64,0.00025,2]
[312057748,1705588239036,-698.54385632,0.00025,2]
[312057750,1705588239046,-303.46202419,0.00025,2]
[312057752,1705588239054,-167.37478937,0.00025,2]
[312057754,1705588239064,-152.18,0.00025015,2]
[312057756,1705588239072,-933.68908946,0.00025155,2]
[312057758,1705588239081,-158.67264273,0.00025156,2]
[312057760,1705588239090,-202.02493081,0.00025159,2]
[312057762,1705588239100,-1000.0,0.0002516,2]
[312057764,1705588239109,-250.0,0.00025215,2]
[312057766,1705588239117,-166.79,0.00025325,2]
[312057768,1705588239126,-163.79,0.00025718,2]
[312057769,1705588239136,-5000.0,0.00026,2]
[312057770,1705588239145,-2350.0,0.00026,3]
[312057771,1705588239155,-1600.0,0.00026,2]
[312057772,1705588239164,-1000.0,0.0002609,3]
[312057773,1705588239173,-1000.0,0.0002609,3]
[312057774,1705588239183,-1000.0,0.0002609,3]
[312057775,1705588239193,-3943.39466712,0.00026103,3]
[312057934,1705588240812,-229.48753953,0.00026103,3]
[312057936,1705588240821,-971.747519,0.00026103,3]
[312058174,1705588243223,-463.51367634,0.00026103,3]
[312058188,1705588243330,-344.24092152,0.00026103,3]
[312058191,1705588243339,-8880.86840519,0.00026103,3]
[312058193,1705588243348,-6.78541139,0.00026103,3]
[312058198,1705588243390,-950.14590883,0.00026103,3]
[312058211,1705588243503,-640.78778311,0.00026103,3]
[312058213,1705588243512,-2781.13721114,0.00026103,3]
[312058215,1705588243524,-3268.51412525,0.00026103,3]
[312058482,1705588246329,-200.0,0.00026102,2]
[312058486,1705588246351,-868.15799617,0.00026103,3]
[312058490,1705588246372,-1000.0,0.00026103,3]
[312058494,1705588246392,-2843.68308503,0.00026103,3]
[312058498,1705588246414,-842.78300833,0.00026103,3]
[312058502,1705588246426,-1372.14540597,0.00026103,3]
[312058508,1705588246442,-716.28058986,0.00026103,3]
[312058884,1705588252999,-495.08726849,0.00026103,3]
[312058886,1705588253010,-1072.80318807,0.00026103,3]
[312058888,1705588253024,-7372.79071422,0.00026103,3]
[312058890,1705588253033,-3883.2078461,0.00026103,3]
[312059004,1705589431571,-155.0,0.00021999,2]
[312059005,1705589431581,-2250.0,0.00022,3]
[312059006,1705589431591,-172.66,0.00023132,2]
[312059007,1705589431601,-150.0,0.00023973,2]
[312059008,1705589431612,-155.19642721,0.00023997,2]
[312059009,1705589431622,-155.0,0.00023997,2]
[312059010,1705589431633,-155.0,0.00023997,2]
[312059011,1705589431642,-155.98053715,0.00023999,2]
[312059012,1705589431652,-17931.16923564,0.00023999,2]
[312059013,1705589431664,-64948.84833724,0.00023999,2]
[312059014,1705589431674,-431.53216335,0.00024,2]
[312059015,1705589431683,-201.13102968,0.00024,2]
[312059016,1705589431693,-2000.0,0.00024,2]
[312059017,1705589431702,-2300.0,0.00024,3]
[312059018,1705589431712,-2737.0,0.000241,2]
[312059019,1705589431721,-150.0,0.000244,2]
[312059020,1705589431730,-215.0,0.000244,2]
[312059021,1705589431739,-150.0,0.000244,2]
[312059022,1705589431750,-152.0,0.000244,2]
[312059023,1705589431759,-153.0,0.000244,2]
[312059025,1705589431768,-153.28,0.000244,2]
[312059027,1705589431777,-200.0,0.000244,2]
[312059029,1705589431786,-239.567,0.000244,2]
[312059031,1705589431795,-250.0,0.00024734,2]
[312059033,1705589431805,-152.79,0.00024761,2]
[312059035,1705589431814,-168.32,0.00024834,2]
[312059037,1705589431823,-3491.0094,0.00024842,2]
[312059039,1705589431833,-154.76,0.0002493,2]
[312059041,1705589431842,-2287.58791005,0.00024942,28]
[312059043,1705589431852,-202.02493081,0.00025,2]
[312059045,1705589431861,-933.68908946,0.00025,2]
[312059047,1705589431871,-303.46202419,0.00025,2]
[312059049,1705589431880,-167.37478937,0.00025,2]
[312059051,1705589431889,-158.67264273,0.00025,2]
[312059053,1705589431899,-1584.10702682,0.00025,2]
[312059054,1705589431908,-2000.0,0.00025,2]
[312059055,1705589431918,-2985.23,0.00025091,2]
[312059056,1705589431927,-250.0,0.00025095,2]
[312059057,1705589431936,-800.0,0.00025262,2]
[312059058,1705589431946,-172.66,0.00025396,2]
[312059059,1705589431955,-152.79,0.0002574,2]
[312059060,1705589431965,-200.0,0.00025795,2]
[312059061,1705589431974,-5000.0,0.00026,2]
[312059062,1705589431983,-1600.0,0.00026,2]
[312059063,1705589431993,-2000.0,0.00026,2]
[312059065,1705589432003,-2350.0,0.00026,3]
[312059067,1705589432012,-277.533,0.00026101,2]
[312059069,1705589432022,-5271.71416133,0.00026102,2]
[312059072,1705589432032,-5902.82107378,0.00026102,3]
[312059074,1705589432041,-11481.17879141,0.00026102,3]
[312059076,1705589432050,-8768.10363819,0.00026102,3]
[312059078,1705589432059,-2279.07109732,0.00026102,3]
[312059079,1705589432068,-1433.3531029,0.00026102,3]
[312059081,1705589432078,-160.27786742,0.00026102,3]
[312059084,1705589432087,-2006.39480717,0.00026102,3]
[312059086,1705589432097,-1933.08912743,0.00026102,3]
[312059088,1705589432106,-966.54456372,0.00026102,3]
[312059090,1705589432115,-5205.91862602,0.00026102,3]
[312059092,1705589432124,-1000.0,0.00026102,3]
[312059094,1705589432133,-318.13947159,0.00026102,3]
[312059096,1705589432142,-1000.0,0.00026102,3]
[312059097,1705589432151,-1684.86245734,0.00026103,3]
[312059100,1705589432160,-1000.0,0.00026103,3]
[312059101,1705589432170,-2434.63345402,0.00026103,3]
[312059103,1705589432179,-5027.23105965,0.00026103,3]
[312059106,1705589432189,-6031.80113271,0.00026103,3]
[312059108,1705589432198,-189.1589461,0.00026103,3]
[312059109,1705589432206,-1000.0,0.00026103,3]
[312059111,1705589432216,-4344.79734035,0.00026103,2]
[312059114,1705589432228,-623.51852664,0.00026103,2]
[312059116,1705589432237,-508.82347968,0.00026103,2]
[312059118,1705589432247,-200.0,0.00026103,2]
[312059120,1705589432256,-155.0,0.00026103,2]
[312059122,1705589432266,-216.59,0.00026221,2]
[312059124,1705589432275,-154.76,0.00026229,2]
[312059126,1705589432285,-247.0,0.000264,2]
[312059128,1705589432295,-17444.65,0.00026575,2]
[312059130,1705589432305,-8350.2915,0.00026583,2]
[312059132,1705589432315,-4051.95490571,0.0002668,2]
[312059134,1705589432324,-1270.67453153,0.00026681,2]
[312059136,1705589432336,-1089.42328101,0.00026682,2]
[312059138,1705589432346,-31571.83218999,0.00026683,2]
[312059179,1705589437563,-306.16,0.000242,2]
[312059180,1705589437574,-153.126,0.000244,2]
[312059181,1705589437583,-223.973,0.000244,2]
[312059182,1705589437593,-18428.16781001,0.00026683,2]
[312059183,1705589437602,-10181.01572422,0.00026683,2]
[312059184,1705589437614,-39818.98427578,0.00026683,2]
[312059185,1705589437623,-4172.50949349,0.00026683,2]
[312059364,1705589440101,-21326.25166795,0.00026683,2]
[312059371,1705589440155,-1063.454,0.00026683,2]
[312059374,1705589440170,-1024.9225113,0.00026683,2]
[312059604,1705589442441,-327.47314679,0.00026683,2]
[312059616,1705589442549,-2603.28008603,0.00026683,2]
[312059618,1705589442559,-2408.66155888,0.00026683,2]
[312059620,1705589442571,-667.49801347,0.00026683,2]
[312059644,1705589442793,-1000.0,0.0002607,3]
[312059646,1705589442803,-6538.2091261,0.00026683,2]
[312059839,1705589445605,-294.0,0.00024458,2]
[312059841,1705589445614,-15967.79199812,0.00026683,2]
[312059845,1705589445664,-587.83730053,0.00026683,2]
[312059846,1705589445676,-16257.54495289,0.00026683,2]
[312059848,1705589445688,-1337.69939366,0.00026683,2]
[312059850,1705589445699,-3782.15027361,0.00026683,2]
[312059853,1705589445711,-2452.60738274,0.00026683,2]
[312059855,1705589445720,-92.79585737,0.00026683,2]
[312059866,1705589445816,-3700.77848853,0.00026683,2]
[312059869,1705589445841,-4588.05931205,0.00026683,2]
[312059995,1705589527982,360.89809472,0.00018398,2]
[312059996,1705589545976,168.34190528,0.00018398,2]
[312059997,1705589546001,191.99393348,0.00018398,2]
[312060001,1705590043823,172.17,0.00020473,2]
[312060002,1705590157412,165.07606652,0.00020473,2]
[312060003,1705590157437,529.24,0.00020473,2]
[312060004,1705590157461,529.24,0.00020473,2]
[312060005,1705590157485,529.24,0.00020473,2]
[312060006,1705590157509,529.24,0.00020473,2]
[312060007,1705590157534,529.24,0.00020473,2]
[312060008,1705590157561,529.24,0.00020473,2]
[312060009,1705590157586,529.24,0.00020473,2]
[312060010,1705590157611,475.04127383,0.00020473,2]
[312060011,1705590171402,54.19872617,0.00020473,2]
[312060012,1705590171426,529.24,0.00020473,2]
[312060013,1705590171451,3761.35861418,0.00020473,2]
[312060014,1705590189418,4344.79734035,0.00020473,2]
[312060015,1705590207650,4344.79734035,0.00020473,2]
[312060016,1705590229415,4344.79734035,0.00020473,2]
[312060017,1705590249423,2202.75175389,0.00020473,2]
[312060020,1705590558821,179.95,0.0002037,2]
[312060036,1705590631804,-155.0,0.00021846,2]
[312060037,1705590631814,-1111.56,0.00021847,2]
[312060038,1705590631827,-1751.66325401,0.00021847,2]
[312060039,1705590631863,-263.40197091,0.00021847,2]
[312060040,1705590631874,-152.9,0.00021942,2]
[312060041,1705590631883,-250.0,0.0002198,2]
[312060042,1705590631892,-1.6123144,0.00022,2]
[312060043,1705590631922,-980.65191279,0.00022,2]
[312060089,1705590637691,-13836.68951958,0.00022,2]
[312060090,1705590637700,-710.59,0.00022,2]
[312060091,1705590637709,-737.94,0.00022,2]
[312060092,1705590637720,-550.0,0.00022,3]
[312060093,1705590637732,-172.52,0.00022164,2]
[312060094,1705590637741,-360.0,0.00022352,2]
[312060095,1705590637751,-179.95,0.00022634,2]
[312060096,1705590637761,-640.0,0.00022715,2]
[312060097,1705590637770,-215.56,0.00022747,2]
[312060098,1705590637780,-161.32,0.00022756,2]
[312060099,1705590637790,-75357.79435445,0.000228,2]
[312060100,1705590637799,-2039.0201,0.00022899,2]
[312060101,1705590637810,-698.22894952,0.00022899,2]
[312060102,1705590637820,-698.22894947,0.00022899,2]
[312060103,1705590637829,-698.22894947,0.00022899,2]
[312060104,1705590637839,-698.22894947,0.00022899,2]
[312060105,1705590637848,-698.22894947,0.000229,2]
[312060106,1705590637857,-698.22894947,0.000229,2]
[312060107,1705590637867,-698.22894947,0.000229,2]
[312060108,1705590637877,-169.22721082,0.000229,2]
[312060109,1705590637887,-1437.48929847,0.000229,2]
[312060110,1705590637897,-564.67699222,0.000229,6]
[312060111,1705590637906,-20602.32457932,0.000229,2]
[312060112,1705590637916,-3683.01416318,0.000229,2]
[312060113,1705590637925,-698.22894947,0.000229,2]
[312060114,1705590637934,-499.99,0.0002296,2]
[312060115,1705590637944,-599.27979208,0.00022997,2]
[312060116,1705590637952,-302.01136108,0.00022997,2]
[312060117,1705590637962,-907.91825439,0.00022998,4]
[312060118,1705590637972,-12294.16339703,0.00022999,2]
[312060119,1705590637982,-505714.14246892,0.00022999,2]
[312060120,1705590637992,-155.0,0.00022999,2]
[312060121,1705590638001,-1320.31079586,0.00022999,2]
[312060122,1705590638010,-24652.05087667,0.00022999,2]
[312060123,1705590638020,-514.86735764,0.00022999,2]
[312060124,1705590638030,-206.00680625,0.00022999,2]
[312060125,1705590638039,-205.06023926,0.00022999,2]
[312060126,1705590638047,-206.00680625,0.00022999,2]
[312060127,1705590638057,-205.06023926,0.00022999,2]
[312060128,1705590638067,-205.06023926,0.00022999,2]
[312060129,1705590638076,-206.00680625,0.00022999,2]
[312060130,1705590638085,-205.06023926,0.00022999,2]
[312060132,1705590638094,-206.00680625,0.00022999,2]
[312060134,1705590638104,-205.06023926,0.00022999,2]
[312060136,1705590638113,-206.00680625,0.00022999,2]
[312060138,1705590638122,-205.06023926,0.00022999,2]
[312060140,1705590638131,-206.00680625,0.00022999,2]
[312060142,1705590638140,-205.06023926,0.00022999,2]
[312060144,1705590638150,-206.00680625,0.00022999,2]
[312060146,1705590638161,-205.06023926,0.00022999,2]
[312060147,1705590638170,-206.00680625,0.00022999,2]
[312060149,1705590638180,-205.06023926,0.00022999,2]
[312060152,1705590638190,-206.00680625,0.00022999,2]
[312060153,1705590638199,-205.06023926,0.00022999,2]
[312060156,1705590638209,-206.00680625,0.00022999,2]
[312060159,1705590638219,-205.06023926,0.00022999,2]
[312060160,1705590638228,-206.00680625,0.00022999,2]
[312060163,1705590638238,-205.06023926,0.00022999,2]
[312060165,1705590638247,-206.00680625,0.00022999,2]
[312060166,1705590638256,-205.06023926,0.00022999,2]
[312060169,1705590638265,-206.00680625,0.00022999,2]
[312060170,1705590638275,-1988206.29781873,0.00023,3]
[312060172,1705590638284,-7059367.56837155,0.00023,2]
[312060175,1705590638302,-360.27768199,0.00023,2]
[312060178,1705590638317,-3500.000002,0.00023,2]
[312060182,1705590638345,-164.0,0.000228,2]
[312060184,1705590638354,-351.13167102,0.00023,2]
[312060412,1705590640863,-344.04393511,0.00023,2]
[312060415,1705590640876,-943.99707172,0.00023,2]
[312060601,1705590642761,-253.87928468,0.00023,2]
[312060620,1705590642926,-907.91825439,0.00023,2]
[312060622,1705590642938,-6246.50973598,0.00023,2]
[312060628,1705590642981,-1411.92481084,0.00023,2]
[312060630,1705590642993,-796.803996,0.00023,2]
[312060632,1705590643005,-420648.60136194,0.00023,2]
[312060926,1705590645903,-727.93,0.00022,2]
[312060928,1705590645913,-1062.62464,0.00022999,2]
[312060931,1705590645923,-181.58354119,0.00022999,2]
[312060932,1705590645933,-224165.55720874,0.00023,2]
[312061064,1705590974872,-151.0,0.00023,7]
[312061065,1705590974892,-151.0,0.00023,7]
[312061066,1705590974913,-151.0,0.00023,7]
[312061067,1705590974934,-155.469068,0.00023,7]
[312061068,1705590974954,-151.0,0.00023,7]
[312061069,1705590974975,-153.689586,0.00023,7]
[312061070,1705590974997,-151.0,0.00023,7]
[312061071,1705590975019,-151.0,0.00023,7]
[312061074,1705591002059,-155.0,0.00021835,2]
[312061075,1705591002082,-524.85123052,0.00021836,2]
[312061076,1705591002105,-2754.6378539,0.00021837,2]
[312061077,1705591002128,-940.65228731,0.00021838,2]
[312061078,1705591002149,-523.83148991,0.00021838,2]
[312061079,1705591002171,-7784.1727728,0.00021839,2]
[312061080,1705591002191,-2651.69571156,0.00021841,2]
[312061083,1705591085406,169.72,0.00019986,2]
[312061084,1705591114613,14925.0,0.00021463,2]
[312061090,1705591347507,162.2,0.00021378,2]
[312061091,1705591347863,288.0,0.00021378,2]
[312061092,1705591403730,215.56,0.00021536,2]
[312061093,1705591416161,889.30813036,0.00021021,2]
[312061096,1705591477271,2273.86,0.0003,120]
[312061097,1705591536769,150.0,0.00020688,2]
[312061098,1705591537058,150.0,0.00021262,4]
[312061099,1705591543816,155.53567901,0.00021699,2]
[312061172,1705591687624,200.0,0.0003,120]
[312061173,1705591688769,-155.0,0.00021717,2]
[312061174,1705591688790,-719.33759459,0.00021717,2]
[312061175,1705591688823,-229.6,0.00021718,2]
[312061176,1705591688848,-150.0,0.00021798,2]
[312061177,1705591688870,-746.06240541,0.00021799,2]
[312061178,1705591689812,-2000.0,0.00021799,2]
[312061179,1705591690138,-1333.45129459,0.00021799,2]
[312061180,1705591690159,-573.1673,0.00021799,2]
[312061181,1705591690180,-93.38140541,0.00021799,2]
[312061182,1705591690620,-1737.60519459,0.00021799,2]
[312061183,1705591690642,-262.39480541,0.000218,2]
[312061184,1705591691497,-420.35429459,0.000218,2]
[312061185,1705591691522,-184.77937279,0.000218,2]
[312061186,1705591691543,-186.49286773,0.000218,2]
[312061187,1705591691565,-601.28026843,0.000218,2]
[312061188,1705591691585,-182.95623491,0.00021818,2]
[312061189,1705591691605,-424.13696155,0.00021818,2]
[312061190,1705591691652,-12.48663141,0.00021818,2]
[312061191,1705591691674,-179.7478753,0.00021818,4]
[312061192,1705591691695,-165.91228554,0.00021818,2]
[312061193,1705591691717,-150.0,0.00021837,4]
[312061194,1705591691738,-1491.85320775,0.00021842,2]
[312061195,1705591692198,-2000.0,0.00021842,2]
[312061196,1705591693385,-2000.0,0.00021842,2]
[312061197,1705591693669,-946.75094191,0.00021842,2]
[312061198,1705591693690,-1053.24905809,0.00021843,2]
[312061199,1705591694225,-2000.0,0.00021843,2]
[312061200,1705591694720,-2000.0,0.00021843,2]
[312061201,1705591695316,-2000.0,0.00021843,2]
[312061202,1705591695776,-1573.63829899,0.00021843,2]
[312061203,1705591695798,-426.36170101,0.00021843,2]
[312061204,1705591696316,-2000.0,0.00021843,2]
[312061208,1705591716452,-186.49286772,0.000218,2]
[312061209,1705591716474,-511.28829899,0.00021843,2]
[312061210,1705591716497,-1302.21883329,0.00021843,2]
[312061211,1705591716993,-1501.45116671,0.00021843,2]
[312061214,1705591722049,259.25,0.00021734,2]
[312061217,1705591749462,239.29883329,0.00021818,2]
[312061218,1705591749486,51.78356201,0.00021818,2]
[312061219,1705591749514,1948.21643799,0.00021843,2]
[312061220,1705591749537,1093.3437182,0.00021843,2]
[312061221,1705591758108,-3077.3598,0.00021844,2]
[312061223,1705591771762,155.0,0.00021843,2]
[312061224,1705591772446,182.9562349,0.00021818,2]
[312061226,1705591783857,160.68,0.00021789,2]
[312061230,1705591784836,177.13,0.00019872,2]
[312061277,1705591831913,-376.92038621,0.00021847,2]
[312061278,1705591831923,-723.75,0.00021855,2]
[312061279,1705591831932,-173.24,0.00021856,2]
[312061280,1705591831942,-713.1,0.00021859,2]
[312061281,1705591831951,-178.8608985,0.00021889,2]
[312061282,1705591831961,-155.0,0.00021897,2]
[312061283,1705591831970,-224.8653206,0.00021898,2]
[312061284,1705591831980,-937.92770111,0.00021898,2]
[312061285,1705591831989,-7396.63028544,0.00021898,2]
[312061286,1705591832001,-22720.16119319,0.00021898,2]
[312061287,1705591832010,-2191.20432098,0.00021899,2]
[312061288,1705591832020,-203264.29627866,0.00021899,2]
[312061289,1705591832031,-250.0,0.00021899,2]
[312061290,1705591832043,-590.0394705,0.00021899,2]
[312061291,1705591832055,-417007.01737214,0.00021899,2]
[312061292,1705591832068,-407.53,0.00021899,2]
[312061293,1705591832080,-311.44051922,0.00021899,2]
[312061294,1705591832092,-11158.90357686,0.00021899,2]
[312061295,1705591832104,-15846.532161,0.00021899,2]
[312061296,1705591832115,-278.60878409,0.00021899,2]
[312061297,1705591832127,-2431.44335424,0.00021899,2]
[312061298,1705591832138,-1050.64516846,0.00021899,2]
[312061299,1705591832151,-3698.8629852,0.00021899,2]
[312061300,1705591832162,-130953.44654919,0.00021899,2]
[312061301,1705591832188,-358.1422689,0.00021899,2]
[312061302,1705591832201,-619.75598315,0.00021899,2]
[312061303,1705591832213,-606.94100005,0.00021899,2]
[312061339,1705591832623,-1243.9888571,0.00021899,2]
[312061341,1705591832634,-943.93187355,0.00021899,2]
[312061343,1705591832646,-481.13236969,0.00021899,2]
[312061346,1705591832657,-1498.83714,0.00021899,2]
[312061348,1705591832669,-818.99,0.00021899,2]
[312061351,1705591832685,-973.32883742,0.00021899,2]
[312061353,1705591832697,-262225.89725842,0.00021899,2]
[312061355,1705591832706,-129364.52515324,0.000219,2]
[312061357,1705591832715,-42190.52005655,0.000219,2]
[312061359,1705591832727,-865.14657609,0.000219,2]
[312061363,1705591832750,-2805.78287957,0.000219,2]
[312061586,1705591837814,-6938.46057468,0.000219,2]
[312061588,1705591837873,-4809.3006,0.000219,2]
[312061589,1705591837886,-307.48492604,0.000219,2]
[312061590,1705591837933,-1505.52984001,0.000219,2]
[312061591,1705591837946,-15283.74061194,0.000219,2]
[312061592,1705591837959,-3345.55352288,0.000219,2]
[312061593,1705591837971,-13202.63496229,0.000219,2]
[312061594,1705591837984,-14662.20450551,0.000219,2]
[312061595,1705591837996,-4809.31574473,0.000219,2]
[312061596,1705591838018,-1481.07984364,0.000219,2]
[312061597,1705591838031,-5625.45326224,0.000219,2]
[312061598,1705591838057,-128932.46502595,0.000219,2]
[312061599,1705591838071,-17346.97063968,0.000219,2]
[312061600,1705591838111,-1038.57916476,0.000219,2]
[312061601,1705591838124,-11531.56272385,0.000219,2]
[312061602,1705591838169,-22400.0,0.000219,2]
[312061603,1705591838181,-2492.33509942,0.000219,2]
[312061604,1705591838194,-1002.07127916,0.000219,2]
[312061605,1705591838206,-1250.0571873,0.000219,2]
[312061606,1705591838219,-11536.9344584,0.000219,2]
[312061608,1705591838231,-190350.95898423,0.000219,2]
[312061610,1705591838240,-250.0,0.00021918,2]
[312061613,1705591838251,-1041.88400935,0.00022,2]
[312061615,1705591838261,-571.09079843,0.00022,2]
[312061616,1705591838271,-550.0,0.00022,3]
[312061617,1705591838281,-177.13,0.00022136,2]
[312061618,1705591838290,-712.0,0.00022267,2]
[312061619,1705591838300,-186.49286772,0.0002235,2]
[312061620,1705591838309,-150.0,0.00022412,4]
[312061621,1705591838319,-12298.83057596,0.000225,2]
[312061622,1705591838328,-160.68,0.00022607,2]
[312061624,1705591838338,-150.0,0.00022679,2]
[312061625,1705591838348,-215.86,0.00022711,2]
[312061628,1705591838358,-259.25,0.00022712,2]
[312061630,1705591838369,-173.51625013,0.00022762,2]
[312061632,1705591838379,-3193.48247001,0.00022763,2]
[312061634,1705591838388,-156.0,0.00022766,2]
[312061637,1705591838398,-500.0,0.00022882,2]
[312061639,1705591838408,-500.0,0.00022891,2]
[312061641,1705591838418,-65539.2307,0.00022896,2]
[312061643,1705591838429,-5000.0,0.00022899,2]
[312061645,1705591838439,-500.0,0.00022899,2]
[312061648,1705591838449,-164.52850548,0.000229,2]
[312061650,1705591838459,-186.49286772,0.000229,2]
[312061652,1705591838469,-325.01726412,0.000229,6]
[312061654,1705591838479,-500.0,0.00022908,2]
[312061656,1705591838489,-16000.0,0.00022916,2]
[312061658,1705591838499,-160.0,0.00022916,2]
[312061660,1705591838510,-500.0,0.00022917,2]
[312061662,1705591838521,-150.0,0.00022986,4]
[312061664,1705591838531,-156.31781136,0.00022994,2]
[312061666,1705591838541,-255.0,0.00022996,2]
[312061668,1705591838551,-1562.80039179,0.00022996,2]
[312061670,1705591838562,-403.8131731,0.00022996,2]
[312061672,1705591838572,-923.25244745,0.00022996,2]
[312061675,1705591838583,-285.53311155,0.00022996,2]
[312061677,1705591838593,-155.85250216,0.00022996,2]
[312061679,1705591838603,-156.40921071,0.00022996,2]
[312061681,1705591838613,-1887.26460822,0.00022996,2]
[312061683,1705591838624,-293.71472257,0.00022996,2]
[312061685,1705591838634,-239.19740567,0.00022996,2]
[312061687,1705591838644,-1702.94991301,0.00022996,2]
[312061689,1705591838653,-162.11132826,0.00022996,2]
[312061691,1705591838664,-155.38053658,0.00022996,2]
[312061693,1705591838673,-2302.61351158,0.00022996,2]
[312061696,1705591838683,-156.74356452,0.00022996,2]
[312061698,1705591838693,-1431.24682515,0.00022996,2]
[312061700,1705591838702,-155.89714604,0.00022996,2]
[312061702,1705591838713,-2757.32340635,0.00022996,2]
[312061704,1705591838722,-185.37800408,0.00022996,2]
[312061706,1705591838732,-381.20683443,0.00022996,2]
[312061708,1705591838742,-217.02178002,0.00022996,2]
[312061710,1705591838751,-2475.64030442,0.00022996,2]
[312061712,1705591838761,-260.10952496,0.00022996,2]
[312061714,1705591838771,-336.10250157,0.00022996,2]
[312061716,1705591838781,-2049.73940079,0.00022996,2]
[312061718,1705591838790,-418.08114353,0.00022996,2]
[312061721,1705591838801,-186.2702355,0.00022996,2]
[312061723,1705591838810,-6452.81,0.00022996,2]
[312061725,1705591838820,-514.30083756,0.00022996,2]
[312061727,1705591838829,-340.92851845,0.00022996,2]
[312061729,1705591838839,-3856.82715024,0.00022996,2]
[312061731,1705591838848,-300.64833471,0.00022996,2]
[312061733,1705591838858,-640.57684527,0.00022996,2]
[312061735,1705591838868,-156.06273402,0.00022996,2]
[312061737,1705591838878,-720.89351567,0.00022996,2]
[312061739,1705591838887,-252.69750772,0.00022996,2]
[312061741,1705591838897,-668.25192238,0.00022996,2]
[312061743,1705591838907,-156.45682699,0.00022996,2]
[312061745,1705591838917,-155.55451817,0.00022996,2]
[312061747,1705591838926,-472.08826879,0.00022996,2]
[312061750,1705591838936,-284.2618957,0.00022996,2]
[312061752,1705591838945,-210.61908448,0.00022996,2]
[312061754,1705591838957,-685.97388283,0.00022996,2]
[312061756,1705591838967,-208.49553179,0.00022996,2]
[312061758,1705591838977,-156.05286893,0.00022996,2]
[312061760,1705591838987,-3617.84690064,0.00022996,2]
[312061762,1705591838997,-180.92566919,0.00022996,2]
[312061764,1705591839007,-193.50856685,0.00022996,2]
[312061766,1705591839017,-695.52274718,0.00022996,2]
[312061768,1705591839027,-232.6767659,0.00022996,2]
[312061771,1705591839037,-201.04685233,0.00022996,2]
[312061773,1705591839046,-260.86670952,0.00022996,2]
[312061775,1705591839056,-370.92564155,0.00022996,2]
[312061777,1705591839066,-287.6524677,0.00022996,2]
[312061779,1705591839078,-302.32237167,0.00022996,2]
[312061781,1705591839088,-160.31660961,0.00022996,2]
[312061783,1705591839097,-33355.37935014,0.00022996,2]
[312061785,1705591839107,-264.94143778,0.00022996,2]
[312061787,1705591839118,-383.14879003,0.00022996,2]
[312061789,1705591839127,-158.21861741,0.00022996,2]
[312061791,1705591839137,-180.75274427,0.00022996,2]
[312061793,1705591839147,-237.12515196,0.00022996,2]
[312061795,1705591839157,-156.5574456,0.00022996,2]
[312061797,1705591839167,-383.66804724,0.00022996,2]
[312061799,1705591839176,-2635.04370569,0.00022996,2]
[312061801,1705591839186,-386.38055922,0.00022996,2]
[312061804,1705591839196,-1044.62291264,0.00022996,2]
[312061806,1705591839205,-155.53885099,0.00022996,2]
[312061808,1705591839215,-3004.11480193,0.00022999,2]
[312061810,1705591839224,-150.0,0.00022999,2]
[312061812,1705591839234,-150.0,0.00022999,2]
[312061814,1705591839244,-150.0,0.00022999,2]
[312061816,1705591839253,-150.0,0.00022999,2]